bitfinex/quotes_SOLUSD_20250514
["timestamp","ask_amount","ask_price","bid_price","bid_amount"]
[1747238756863,138.2,177.56,177.52,24.31312734]
[1747238757258,138.2,177.56,177.53,0.14216157]
[1747238757565,138.2,177.63,177.55,0.28432314]
[1747238757870,138.2,177.63,177.57,0.28432314]
[1747238758051,138.2,177.63,177.6,1.5474]
[1747238758274,22.75022426,177.7,177.63,0.28432314]
[1747238758446,5.62749549,177.7,177.64,18.66]
[1747238758644,22.75022426,177.7,177.64,18.66]
[1747238758862,17.12272877,177.68,177.64,18.66]
[1747238759035,19.69615052,177.7,177.63,18.66]
[1747238759240,5.62749549,177.7,177.63,18.66]
[1747238759956,27.36186756,177.69,177.63,18.66]
[1747238760153,19.69615052,177.7,177.63,18.66]
[1747238760346,27.36186756,177.69,177.63,18.66]
[1747238760656,27.36186756,177.68,177.63,18.66]
[1747238760954,27.36186756,177.66,177.62,25.1367]
[1747238761350,171.19027978,177.67,177.62,25.1367]
[1747238761674,27.36186756,177.66,177.62,25.1367]
[1747238762186,27.36186756,177.66,177.58,0.28432314]
[1747238762187,27.36186756,177.63,177.58,6.4823]
[1747238762495,27.36186756,177.6,177.58,25.1823]
[1747238762777,27.36186756,177.61,177.58,25.1823]
[1747238762955,27.36186756,177.62,177.58,25.1823]
[1747238763161,27.36186756,177.63,177.58,25.1823]
[1747238763547,171.19123031,177.64,177.58,30.8135392]
[1747238763943,165.56186756,177.64,177.58,30.8135392]
[1747238764962,138.2,177.64,177.59,0.28432314]
[1747238765547,138.2,177.64,177.58,56.8135392]
[1747238766176,138.2,177.64,177.59,0.28432314]
[1747238766378,138.2,177.64,177.58,25.1823]
[1747238766379,138.2,177.63,177.58,25.1823]
[1747238766588,27.36186756,177.6,177.57,18.78]
[1747238766746,27.36186756,177.59,177.57,18.78]
[1747238767076,5.63097111,177.59,177.57,18.78]
[1747238767385,27.36186756,177.58,177.57,18.78]
[1747238768051,27.36186756,177.58,177.52,210.86]
[1747238768052,54.72373512,177.58,177.52,210.86]
[1747238768355,27.36186756,177.53,177.51,20.3903]
[1747238768679,27.36186756,177.52,177.51,18.8]
[1747238768852,5.63348543,177.51,177.47,18.7]
[1747238769177,27.36186756,177.48,177.47,18.8]
[1747238769475,27.36186756,177.48,177.46,39.097]
[1747238769672,27.36186756,177.47,177.46,37.52]
[1747238769976,27.36186756,177.47,177.46,18.7]
[1747238770352,27.36186756,177.47,177.41,237.641]
[1747238770546,27.36186756,177.42,177.41,18.7]
[1747238770876,26.0,177.47,177.41,18.7]
[1747238771175,27.36186756,177.42,177.41,18.7]
[1747238771382,26.0,177.49,177.41,24.33666084]
[1747238771679,27.36186756,177.47,177.41,24.33666084]
[1747238772050,27.36186756,177.46,177.41,24.33666084]
[1747238772258,27.36186756,177.47,177.41,24.33666084]
[1747238774058,27.36186756,177.46,177.41,24.33666084]
[1747238775881,26.0,177.51,177.41,24.33666084]
[1747238776063,27.36186756,177.47,177.41,24.33666084]
[1747238776269,165.56186756,177.5,177.42,0.28432314]
[1747238776571,27.36186756,177.49,177.43,5.63602547]
[1747238776769,27.36186756,177.48,177.43,5.63602547]
[1747238778162,27.36186756,177.48,177.37,6.6208]
[1747238778163,27.36186756,177.44,177.38,0.14216157]
[1747238778473,143.83380424,177.5,177.38,5.63761416]
[1747238778474,27.36186756,177.42,177.38,5.63761416]
[1747238778784,27.36186756,177.42,177.39,37.6]
[1747238779464,27.36186756,177.43,177.39,37.6]
[1747238779661,27.36186756,177.44,177.4,18.8]
[1747238779871,138.2,177.47,177.4,18.8]
[1747238780078,138.2,177.47,177.41,0.28432314]
[1747238780494,165.56186756,177.47,177.42,5.63634314]
[1747238780985,27.36186756,177.43,177.42,18.8]
[1747238782189,27.36186756,177.43,177.37,6.6208]
[1747238782383,138.2,177.46,177.39,18.82]
[1747238782580,27.36186756,177.4,177.39,18.82]
[1747238783315,27.36186756,177.4,177.37,44.2608]
[1747238783493,27.36186756,177.39,177.37,25.4608]
[1747238783708,27.36186756,177.38,177.37,18.84]
[1747238783866,27.36186756,177.38,177.34,18.82]
[1747238784061,27.36186756,177.35,177.33,6.234]
[1747238784298,27.36186756,177.35,177.33,18.82]
[1747238784799,27.36186756,177.36,177.33,18.82]
[1747238784968,27.36186756,177.35,177.33,18.82]
[1747238785168,143.83768069,177.38,177.3,210.76]
[1747238785381,27.36186756,177.31,177.3,229.6]
[1747238785576,27.36186756,177.33,177.3,229.6]
[1747238785971,27.36186756,177.33,177.3,18.84]
[1747238786311,27.36186756,177.31,177.29,18.84]
[1747238787224,138.2,177.36,177.29,18.84]
[1747238787375,27.36186756,177.32,177.29,18.84]
[1747238787695,27.36186756,177.33,177.29,18.84]
[1747238788202,27.36186756,177.32,177.29,18.84]
[1747238789601,5.63956606,177.32,177.29,18.84]
[1747238789792,27.36186756,177.3,177.29,18.84]
[1747238790577,138.2,177.31,177.29,18.84]
[1747238790779,27.36186756,177.3,177.29,18.84]
[1747238791710,138.2,177.31,177.29,18.84]
[1747238792415,138.2,177.31,177.29,24.48046706]
[1747238792582,138.2,177.31,177.29,18.84]
[1747238792776,138.2,177.31,177.29,24.48035784]
[1747238792977,5.63756136,177.39,177.29,24.48035784]
[1747238793176,27.36186756,177.36,177.29,24.48035784]
[1747238793816,27.36186756,177.35,177.3,0.12415073]
[1747238793978,27.36186756,177.32,177.3,0.12415073]
[1747238794306,27.36186756,177.31,177.3,0.12415073]
[1747238794682,33.00170738,177.31,177.3,0.12415073]
[1747238795483,27.36186756,177.31,177.3,0.12415073]
[1747238795703,33.00170738,177.31,177.3,0.12415073]
[1747238796408,27.36186756,177.31,177.3,0.12415073]
[1747238796593,33.00170738,177.31,177.3,0.12415073]
[1747238799027,79.0132238,177.31,177.3,0.12415073]
[1747238799485,27.36186756,177.24,177.2,18.76]
[1747238799688,27.36186756,177.21,177.18,18.84]
[1747238799995,27.36186756,177.19,177.18,18.84]
[1747238800404,27.36186756,177.2,177.18,18.84]
[1747238800921,27.36186756,177.21,177.18,18.84]
[1747238801080,20.31710567,177.29,177.18,18.84]
[1747238801081,27.36186756,177.3,177.18,24.48368549]
[1747238801287,27.36186756,177.25,177.18,24.48368549]
[1747238801495,27.36186756,177.24,177.18,24.48368549]
[1747238801702,27.36186756,177.23,177.18,24.48368549]
[1747238802208,165.56186756,177.23,177.18,24.48368549]
[1747238802411,27.36186756,177.21,177.18,18.84]
[1747238802797,27.36186756,177.2,177.18,18.84]
[1747238803112,27.36186756,177.19,177.18,18.84]
[1747238803815,165.56186756,177.23,177.18,24.48396322]
[1747238804309,138.2,177.23,177.18,38.5939079]
[1747238804519,143.8405528,177.29,177.2,0.14216157]
[1747238804721,171.20242036,177.29,177.2,0.14216157]
[1747238804901,27.36186756,177.28,177.2,0.14216157]
[1747238805110,165.56186756,177.29,177.21,5.6430224]
[1747238805310,165.56186756,177.29,177.22,18.84]
[1747238806591,138.2,177.29,177.22,18.84]
[1747238806791,165.56186756,177.29,177.22,18.84]
[1747238807399,138.2,177.33,177.25,6.2524]
[1747238807690,27.36186756,177.32,177.26,18.8]
[1747238807919,27.36186756,177.3,177.26,18.8]
[1747238808509,143.83926555,177.33,177.26,18.8]
[1747238808510,27.36186756,177.31,177.26,18.8]
[1747238808717,27.36186756,177.3,177.26,18.8]
[1747238810631,27.36186756,177.32,177.26,24.4413561]
[1747238811202,27.36186756,177.31,177.26,24.4413561]
[1747238812532,27.36186756,177.3,177.26,18.8]
[1747238812845,27.36186756,177.3,177.26,24.44132105]
[1747238813362,27.36186756,177.28,177.27,18.82]
[1747238813522,33.00274456,177.28,177.26,37.62]
[1747238813709,27.36186756,177.27,177.26,37.62]
[1747238814328,27.36186756,177.28,177.26,37.62]
[1747238814519,27.36186756,177.29,177.26,37.62]
[1747238815643,27.36186756,177.28,177.26,37.62]
[1747238817446,27.36186756,177.28,177.26,18.82]
[1747238818951,5.63991252,177.31,177.26,18.82]
[1747238819151,27.36186756,177.3,177.26,18.82]
[1747238819543,27.36186756,177.29,177.26,18.82]
[1747238820360,27.36186756,177.29,177.27,18.78]
[1747238820954,138.2,177.31,177.27,18.78]
[1747238821669,165.56186756,177.31,177.27,18.78]
[1747238821849,165.56186756,177.31,177.27,24.42110379]
[1747238822160,171.20173827,177.31,177.27,18.78]
[1747238822379,27.36186756,177.3,177.27,18.78]
[1747238822542,165.56186756,177.31,177.27,18.78]
[1747238822742,165.56186756,177.31,177.27,24.42093891]
[1747238822943,138.2,177.31,177.27,24.42093891]
[1747238824048,22.81297983,177.35,177.28,0.28432314]
[1747238824359,17.17432008,177.31,177.29,18.8]
[1747238824554,17.17432008,177.3,177.29,18.8]
[1747238825179,138.2,177.34,177.29,18.8]
[1747238825180,17.17432008,177.31,177.29,18.8]
[1747238825360,17.17432008,177.31,177.25,6.2524]
[1747238825361,17.17432008,177.3,177.25,6.2524]
[1747238825560,17.17432008,177.28,177.26,18.78]
[1747238826601,17.17432008,177.32,177.26,24.421191]
[1747238826754,17.17432008,177.31,177.26,24.421191]
[1747238826957,17.17432008,177.32,177.26,24.421191]
[1747238827671,155.37432008,177.33,177.26,24.421191]
[1747238827968,155.37432008,177.33,177.27,0.28432314]
[1747238827969,138.2,177.33,177.27,0.28432314]
[1747238828188,138.2,177.33,177.27,1.41229728]
[1747238828492,161.01358646,177.33,177.27,1.41229728]
[1747238828659,161.01358646,177.33,177.27,0.28432314]
[1747238828865,155.37432008,177.33,177.27,0.28432314]
[1747238829566,161.01353358,177.33,177.27,0.28432314]
[1747238830092,138.2,177.33,177.28,5.64079422]
[1747238830590,2.93909215,177.36,177.29,1.41219552]
[1747238830895,138.2,177.4,177.34,0.28432314]
[1747238831078,138.2,177.4,177.35,37.54]
[1747238832201,138.2,177.4,177.38,6.4238]
[1747238832405,155.37432008,177.47,177.39,26.0]
[1747238832567,138.2,177.47,177.4,0.28432314]
[1747238832763,155.37432008,177.47,177.41,37.56]
[1747238833286,17.17432008,177.46,177.41,37.56]
[1747238833498,17.17432008,177.43,177.41,37.56]
[1747238833684,17.17432008,177.42,177.41,37.56]
[1747238835375,33.08663226,177.42,177.41,37.56]
[1747238835692,27.45028912,177.42,177.41,37.56]
[1747238836297,33.08663226,177.42,177.41,37.56]
[1747238837168,33.08663226,177.42,177.34,1.5183]
[1747238837364,27.45028912,177.37,177.36,18.76]
[1747238837778,27.45028912,177.38,177.36,18.76]
[1747238837965,27.45028912,177.37,177.36,18.76]
[1747238840309,138.2,177.41,177.36,24.39824988]
[1747238840478,165.65028912,177.41,177.36,24.39824988]
[1747238840883,138.2,177.41,177.36,24.39824988]
[1747238841578,138.2,177.41,177.37,0.28432314]
[1747238842789,138.2,177.41,177.38,5.63761416]
[1747238843301,27.45028912,177.39,177.38,18.76]
[1747238843673,27.45028912,177.4,177.38,18.76]
[1747238845309,27.45028912,177.39,177.38,18.76]
[1747238845494,138.2,177.41,177.38,18.76]
[1747238845682,165.65028912,177.41,177.38,18.76]
[1747238848005,171.2870586,177.41,177.38,18.76]
[1747238848703,27.45028912,177.4,177.38,18.76]
[1747238849209,165.65028912,177.41,177.38,18.76]
[1747238849707,138.2,177.41,177.38,24.39744731]
[1747238849880,26.0,177.46,177.38,25.5248025]
[1747238850200,141.13728004,177.47,177.41,0.28432314]
[1747238850396,138.2,177.47,177.41,0.28432314]
[1747238850592,165.65028912,177.47,177.41,0.28432314]
[1747238850786,165.65028912,177.47,177.42,0.39855072]
[1747238850787,171.28510975,177.47,177.42,0.39855072]
[1747238850986,27.45028912,177.46,177.42,0.39855072]
[1747238851977,27.45028912,177.45,177.42,0.39855072]
[1747238852307,27.45028912,177.46,177.42,0.39855072]
[1747238852616,53.45028912,177.43,177.42,0.39855072]
[1747238852826,53.45028912,177.43,177.36,4.44013409]
[1747238852827,26.0,177.39,177.36,4.44013409]
[1747238852980,27.45028912,177.37,177.36,4.44013409]
[1747238853318,27.45028912,177.37,177.31,44.1051]
[1747238853618,27.45028912,177.34,177.31,44.1051]
[1747238854507,27.45028912,177.33,177.31,37.5]
[1747238854678,27.45028912,177.32,177.29,18.74]
[1747238855086,27.45028912,177.34,177.29,18.74]
[1747238855878,27.45028912,177.34,177.29,24.38026687]
[1747238856191,138.2,177.36,177.3,0.14216157]
[1747238856402,138.2,177.36,177.3,0.28432314]
[1747238856598,165.65028912,177.36,177.3,0.28432314]
[1747238856982,171.28861799,177.36,177.3,0.28432314]
[1747238857210,27.45028912,177.35,177.3,0.28432314]
[1747238857697,27.45028912,177.33,177.29,24.38026687]
[1747238857899,27.45028912,177.33,177.29,18.74]
[1747238858082,27.45028912,177.33,177.29,24.38040031]
[1747238858517,27.45028912,177.32,177.29,18.74]
[1747238859209,27.45028912,177.31,177.27,25.1838]
[1747238859381,27.45028912,177.31,177.28,18.74]
[1747238859582,27.45028912,177.3,177.28,18.74]
[1747238859811,27.45028912,177.29,177.28,18.74]
[1747238860118,27.45028912,177.29,177.27,37.72]
[1747238860417,27.45028912,177.28,177.25,18.98]
[1747238860617,27.45028912,177.27,177.25,18.98]
[1747238860978,27.45028912,177.28,177.25,18.98]
[1747238862644,27.45028912,177.28,177.25,18.94]
[1747238863216,27.45028912,177.27,177.25,18.94]
[1747238863520,27.45028912,177.27,177.24,37.7]
[1747238864042,27.45028912,177.25,177.24,18.76]
[1747238864501,33.09203806,177.25,177.17,1.5849]
[1747238864695,27.45028912,177.2,177.19,18.98]
[1747238865325,27.45028912,177.2,177.17,18.94]
[1747238865518,27.45028912,177.2,177.13,13.82774575]
[1747238865519,27.45028912,177.18,177.14,19.02]
[1747238865714,27.45028912,177.17,177.14,19.02]
[1747238866102,27.45028912,177.16,177.14,19.08]
[1747238866615,27.45028912,177.15,177.09,231.6294]
[1747238866821,27.45028912,177.12,177.1,19.1]
[1747238867131,138.2,177.15,177.1,19.1]
[1747238867306,138.2,177.15,177.11,0.28432314]
[1747238867639,165.65028912,177.15,177.12,19.1]
[1747238867810,27.45028912,177.13,177.1,19.1]
[1747238868012,138.2,177.15,177.1,19.1]
[1747238868339,27.45028912,177.14,177.1,19.1]
[1747238868534,27.45028912,177.12,177.1,19.1]
[1747238868727,27.45028912,177.14,177.1,19.1]
[1747238869031,27.45028912,177.14,177.1,24.74645604]
[1747238869424,165.65028912,177.15,177.1,24.74645604]
[1747238869841,27.45028912,177.14,177.1,24.74645604]
[1747238870027,27.45028912,177.13,177.1,24.74645604]
[1747238870225,27.45028912,177.14,177.1,24.74645604]
[1747238870626,27.45028912,177.13,177.1,24.74645604]
[1747238871018,27.45028912,177.12,177.09,211.06]
[1747238871237,143.84504793,177.15,177.1,19.12]
[1747238871442,27.45028912,177.11,177.1,19.12]
[1747238871621,27.45028912,177.11,177.08,18.94]
[1747238871820,143.84504793,177.15,177.08,38.08]
[1747238871821,27.45028912,177.09,177.08,38.08]
[1747238872017,27.45028912,177.09,177.08,18.94]
[1747238872540,5.64620857,177.11,177.08,18.94]
[1747238872717,27.45028912,177.09,177.08,18.94]
[1747238873142,138.2,177.14,177.08,24.58716512]
[1747238873313,138.2,177.14,177.08,43.68716512]
[1747238873514,165.65028912,177.14,177.08,43.68716512]
[1747238873715,138.2,177.14,177.08,43.68716512]
[1747238874339,27.45028912,177.18,177.1,1.5529]
[1747238874552,165.65028912,177.19,177.12,5.64588979]
[1747238874719,27.45028912,177.18,177.12,5.64588979]
[1747238875039,27.45028912,177.17,177.12,5.64588979]
[1747238875230,27.45028912,177.14,177.1,7.19935359]
[1747238875756,146.78534841,177.19,177.09,5.64677408]
[1747238875757,27.45028912,177.13,177.09,5.64677408]
[1747238875913,27.45028912,177.13,177.07,5.78936998]
[1747238876110,27.45028912,177.12,177.08,38.1]
[1747238876651,27.45028912,177.14,177.09,5.64684623]
[1747238877021,165.65028912,177.16,177.09,5.64684623]
[1747238877220,138.2,177.16,177.09,5.64684623]
[1747238877445,138.2,177.16,177.1,0.28432314]
[1747238877925,138.2,177.16,177.1,1.41335966]
[1747238878147,30.39191922,177.19,177.1,1.41335966]
[1747238878330,138.2,177.22,177.11,6.6487]
[1747238878529,165.65028912,177.21,177.13,0.28432314]
[1747238878846,165.65028912,177.21,177.15,5.64493367]
[1747238879424,138.2,177.21,177.16,0.28432314]
[1747238879836,165.65028912,177.21,177.15,7.20193367]
[1747238880049,138.2,177.21,177.15,7.20193367]
[1747238880248,165.65028912,177.21,177.15,7.20193367]
[1747238881118,27.45028912,177.19,177.14,38.08]
[1747238881324,27.45028912,177.17,177.15,19.1]
[1747238882059,27.45028912,177.17,177.12,18.96]
[1747238882235,27.45028912,177.17,177.13,19.1]
[1747238883027,27.45028912,177.17,177.13,24.74541167]
[1747238883242,27.45028912,177.17,177.13,19.1]
[1747238883541,33.09476315,177.17,177.13,19.1]
[1747238884154,27.45028912,177.15,177.12,18.96]
[1747238884455,27.45028912,177.13,177.12,38.04]
[1747238884637,138.2,177.16,177.12,38.04]
[1747238884954,27.45028912,177.15,177.12,38.04]
[1747238885126,27.45028912,177.14,177.12,38.04]
[1747238885637,27.45028912,177.15,177.12,38.04]
[1747238886038,27.45028912,177.14,177.12,38.04]
[1747238886825,143.84462838,177.16,177.12,38.04]
[1747238886826,27.45028912,177.15,177.12,38.04]
[1747238887327,138.2,177.16,177.12,43.68585241]
[1747238887646,165.65028912,177.16,177.12,38.04]
[1747238887949,138.2,177.16,177.12,38.04]
[1747238888155,138.2,177.16,177.12,43.6858813]
[1747238888488,138.2,177.16,177.12,38.04]
[1747238888759,165.65028912,177.16,177.12,38.04]
[1747238888931,27.45028912,177.15,177.12,38.04]
[1747238889133,27.45028912,177.13,177.08,18.96]
[1747238889334,27.45028912,177.11,177.09,19.08]
[1747238890128,27.45028912,177.11,177.07,6.3526]
[1747238890325,27.45028912,177.09,177.08,19.08]
[1747238890852,27.45028912,177.1,177.08,19.08]
[1747238891151,27.45028912,177.12,177.08,19.08]
[1747238891526,27.45028912,177.12,177.08,24.72711819]
[1747238891759,138.2,177.14,177.08,24.72711819]
[1747238892467,138.2,177.14,177.09,0.28432314]
[1747238892672,138.2,177.2,177.12,1.66386157]
[1747238892852,138.2,177.2,177.14,5.64525234]
[1747238893057,138.2,177.2,177.15,19.08]
[1747238894480,138.2,177.2,177.16,0.28432314]
[1747238894971,138.2,177.2,177.17,5.64429643]
[1747238895271,171.29210157,177.25,177.18,6.1985]
[1747238895451,27.45028912,177.24,177.18,6.1985]
[1747238896464,171.29210157,177.25,177.19,5.64365934]
[1747238896968,138.2,177.25,177.2,19.04]
[1747238897183,138.2,177.25,177.21,19.02]
[1747238897485,138.2,177.31,177.22,0.14216157]
[1747238897689,165.65028912,177.31,177.22,0.28432314]
[1747238897978,143.84007605,177.31,177.22,0.28432314]
[1747238898156,138.2,177.31,177.22,0.28432314]
[1747238898360,171.29024316,177.31,177.22,0.28432314]
[1747238898568,27.45028912,177.3,177.22,0.28432314]
[1747238898865,27.45028912,177.29,177.22,0.28432314]
[1747238899062,27.45028912,177.28,177.22,0.28432314]
[1747238899270,157.93955361,177.31,177.22,0.28432314]
[1747238899566,143.83859734,177.35,177.26,26.0]
[1747238899755,5.63859734,177.35,177.27,38.08]
[1747238899957,33.0884562,177.37,177.28,1.41229265]
[1747238900568,33.08867408,177.36,177.28,0.28432314]
[1747238900765,27.45028912,177.35,177.28,5.64071909]
[1747238901287,5.63793485,177.37,177.28,5.64071909]
[1747238901462,27.45028912,177.37,177.28,6.76862718]
[1747238901851,27.45028912,177.36,177.28,6.76862718]
[1747238902062,27.45028912,177.32,177.26,0.14216157]
[1747238902260,27.45028912,177.31,177.29,19.0]
[1747238902550,33.09013256,177.31,177.29,19.0]
[1747238902752,27.45028912,177.3,177.29,19.0]
[1747238902958,27.45028912,177.32,177.29,19.0]
[1747238903561,26.0,177.35,177.29,24.64041047]
[1747238903764,27.45028912,177.35,177.29,24.64041047]
[1747238904483,27.45028912,177.36,177.29,24.64041047]
[1747238904667,165.65028912,177.37,177.29,24.64041047]
[1747238905578,171.28829429,177.37,177.29,24.64041047]
[1747238905953,143.83800517,177.37,177.29,24.64041047]
[1747238906154,27.45028912,177.34,177.27,27.127898]
[1747238906380,27.45028912,177.32,177.28,38.02]
[1747238906670,27.45028912,177.32,177.29,18.98]
[1747238907266,33.08989319,177.32,177.29,18.98]
[1747238907586,27.45028912,177.31,177.29,18.98]
[1747238908483,27.45028912,177.32,177.29,18.98]
[1747238908659,27.45028912,177.33,177.29,18.98]
[1747238908983,27.45028912,177.32,177.29,18.98]
[1747238909349,27.45028912,177.32,177.28,19.04]
[1747238909557,27.45028912,177.3,177.28,19.04]
[1747238909768,27.45028912,177.29,177.28,19.04]
[1747238909976,27.45028912,177.3,177.26,18.98]
[1747238910682,33.09050035,177.3,177.26,18.98]
[1747238910983,33.09050035,177.3,177.26,18.96]
[1747238911382,27.45028912,177.28,177.26,18.96]
[1747238911580,5.64021123,177.3,177.21,27.41255476]
[1747238911581,27.45028912,177.27,177.21,1.6003]
[1747238911883,27.45028912,177.24,177.22,18.96]
[1747238912384,27.45028912,177.26,177.22,18.96]
[1747238912766,33.09174206,177.26,177.22,18.96]
[1747238913083,27.45028912,177.25,177.22,18.98]
[1747238913457,27.45028912,177.23,177.19,6.0703]
[1747238913660,27.45028912,177.22,177.19,25.0503]
[1747238913980,27.45028912,177.22,177.18,18.98]
[1747238914155,164.2,177.25,177.18,18.98]
[1747238914481,138.2,177.25,177.19,0.28432314]
[1747238914678,138.2,177.25,177.21,0.28432314]
[1747238914890,138.2,177.25,177.22,5.64270398]
[1747238915083,33.09104273,177.29,177.23,19.04]
[1747238915288,33.09104273,177.29,177.24,19.0]
[1747238915486,27.45028912,177.29,177.24,19.0]
[1747238915667,33.09051272,177.3,177.24,19.0]
[1747238916064,33.09051272,177.3,177.23,25.4983]
[1747238916272,33.09051272,177.3,177.24,18.98]
[1747238916479,27.45028912,177.29,177.24,18.98]
[1747238916682,27.45028912,177.29,177.24,24.62200944]
[1747238917695,33.09079033,177.29,177.24,18.98]
[1747238919190,27.45028912,177.3,177.24,24.62204308]
[1747238919383,138.2,177.31,177.25,1.5488]
[1747238920969,171.29029262,177.31,177.25,1.5488]
[1747238921267,27.45028912,177.3,177.25,1.5488]
[1747238921473,171.29029262,177.31,177.25,1.5488]
[1747238921674,171.29029262,177.31,177.25,7.19045484]
[1747238921866,171.29029262,177.31,177.25,1.5488]
[1747238922067,27.45028912,177.29,177.25,1.5488]
[1747238922294,138.2,177.3,177.25,1.5488]
[1747238922295,27.45028912,177.28,177.25,1.5488]
[1747238922485,27.45028912,177.29,177.25,1.5488]
[1747238923383,171.2905786,177.3,177.25,1.5488]
[1747238924300,138.2,177.3,177.25,7.19049923]
[1747238924888,165.65028912,177.3,177.26,18.94]
[1747238925203,171.29045057,177.3,177.26,18.94]
[1747238925600,27.45028912,177.29,177.26,18.94]
[1747238925905,143.84016145,177.3,177.26,18.94]
[1747238925906,27.45028912,177.28,177.26,18.94]
[1747238926408,27.45028912,177.29,177.24,18.92]
[1747238927095,27.45028912,177.28,177.24,18.92]
[1747238927510,33.09140154,177.27,177.24,18.92]
[1747238928000,33.09140154,177.27,177.23,6.4583]
[1747238928173,27.45028912,177.24,177.22,18.9]
[1747238928502,27.45028912,177.26,177.22,18.9]
[1747238928797,27.45028912,177.27,177.22,18.9]
[1747238929003,27.45028912,177.26,177.22,18.9]
[1747238929505,27.45028912,177.27,177.21,1.5701]
[1747238929800,27.45028912,177.26,177.23,18.9]
[1747238929997,27.45028912,177.24,177.23,18.9]
[1747238930185,27.45028912,177.24,177.21,1.5701]
[1747238930385,27.45028912,177.24,177.21,20.4701]
[1747238930581,8.58149419,177.28,177.21,18.9]
[1747238930582,27.45028912,177.23,177.21,18.9]
[1747238930813,27.45028912,177.22,177.18,6.5823]
[1747238930989,27.45028912,177.21,177.18,25.5023]
[1747238931189,27.45028912,177.22,177.18,25.5023]
[1747238931584,33.09311064,177.22,177.18,25.5023]
[1747238931796,27.45028912,177.21,177.18,25.5023]
[1747238932801,27.45028912,177.19,177.16,1.6151]
[1747238933008,27.45028912,177.17,177.14,6.4367]
[1747238933190,27.45028912,177.15,177.12,1.5141]
[1747238933541,27.45028912,177.14,177.09,25.3767]
[1747238933694,27.45028912,177.12,177.09,25.3767]
[1747238933900,27.45028912,177.13,177.09,44.2767]
[1747238934102,164.2,177.19,177.09,49.92349037]
[1747238934103,27.45028912,177.14,177.09,49.92349037]
[1747238934694,27.45028912,177.15,177.09,49.92349037]
[1747238935691,27.45028912,177.14,177.09,49.92349037]
[1747238936990,27.45028912,177.15,177.09,49.92349037]
[1747238937211,27.45028912,177.17,177.09,49.92349037]
[1747238937419,169.8437259,177.19,177.09,49.92349037]
[1747238937600,183.95287427,177.19,177.09,49.92349037]
[1747238937803,27.45028912,177.15,177.09,49.92349037]
[1747238938004,27.45028912,177.14,177.09,44.2767]
[1747238939109,33.09560154,177.14,177.09,44.2767]
[1747238939321,27.45028912,177.14,177.09,49.92343188]
[1747238940516,27.45028912,177.16,177.09,49.92343188]
[1747238941416,138.2,177.19,177.1,0.28432314]
[1747238941612,138.2,177.19,177.1,1.41338527]
[1747238942120,171.29396751,177.19,177.1,1.41338527]
[1747238942319,171.29396751,177.19,177.1,18.933972]
[1747238942818,27.45028912,177.18,177.1,0.28432314]
[1747238943001,171.29396751,177.19,177.1,0.28432314]
[1747238943201,171.29396751,177.19,177.11,5.64620857]
[1747238943399,27.45028912,177.18,177.11,5.64620857]
[1747238943607,27.45028912,177.17,177.11,5.64620857]
[1747238943810,27.45028912,177.16,177.1,5.64647438]
[1747238944007,27.45028912,177.14,177.11,18.88]
[1747238944235,27.45028912,177.13,177.09,25.3767]
[1747238944603,27.45028912,177.12,177.09,44.2567]
[1747238944804,27.45028912,177.12,177.09,44.2367]
[1747238945239,27.45028912,177.13,177.09,44.2367]
[1747238945530,27.45028912,177.12,177.09,44.2367]
[1747238945822,27.45028912,177.11,177.09,37.8]
[1747238945996,27.45028912,177.1,177.09,18.94]
[1747238946425,27.45028912,177.1,177.05,25.3589]
[1747238946698,27.45028912,177.08,177.05,6.4589]
[1747238946897,27.45028912,177.08,177.05,25.3589]
[1747238947391,27.45028912,177.08,177.05,18.9]
[1747238947608,171.29729346,177.09,177.03,20.5481]
[1747238947810,171.29729346,177.09,177.04,18.9]
[1747238948093,138.2,177.09,177.04,18.9]
[1747238949404,138.2,177.09,177.05,5.64812199]
[1747238949714,171.29714851,177.09,177.03,20.5481]